[Event "*** Titled Tuesday Blitz"]
[Site "Chess.com"]
[Date "2018.11.06"]
[Round "3"]
[White "Alex_Banzea"]
[Black "ChessicallyInclined"]
[Result "1-0"]
[WhiteElo "2315"]
[BlackElo "2391"]
[TimeControl "180+2"]
[EndTime "13:41:02 PST"]
[Termination "Alex_Banzea won by checkmate"]

1. e4 {[%clk 0:02:59.7]} 1... e5 {[%clk 0:02:59]} 2. Nf3 {[%clk 0:02:57.7]} 2...
Nc6 {[%clk 0:02:58.8]} 3. Bb5 {[%clk 0:02:59.1]} 3... a6 {[%clk 0:02:59.7]} 4.
Ba4 {[%clk 0:03:00.1]} 4... Nf6 {[%clk 0:03:00.7]} 5. O-O {[%clk 0:03:01.3]}
5... Be7 {[%clk 0:03:02]} 6. Re1 {[%clk 0:03:02.5]} 6... b5 {[%clk 0:03:03.7]}
7. Bb3 {[%clk 0:03:04.1]} 7... d6 {[%clk 0:03:05.3]} 8. c3 {[%clk 0:03:05.7]}
8... O-O {[%clk 0:03:06.8]} 9. h3 {[%clk 0:03:07.3]} 9... Nb8 {[%clk 0:03:08.4]}
10. d4 {[%clk 0:03:08.6]} 10... Nbd7 {[%clk 0:03:10]} 11. c4 {[%clk 0:03:10.3]}
11... exd4 {[%clk 0:03:02.6]} 12. Nxd4 {[%clk 0:03:09]} 12... Bb7 {[%clk
0:02:59.3]} 13. Nc3 {[%clk 0:03:08.2]} 13... b4 {[%clk 0:02:58.1]} 14. Nd5
{[%clk 0:03:09.5]} 14... Nxd5 {[%clk 0:02:57.7]} 15. cxd5 {[%clk 0:03:09.3]}
15... Nc5 {[%clk 0:02:57.6]} 16. Bc4 {[%clk 0:03:06.2]} 16... Bf6 {[%clk
0:02:56.8]} 17. f3 {[%clk 0:02:53]} 17... Bh4 {[%clk 0:02:45]} 18. Rf1 {[%clk
0:02:52.7]} 18... Bg3 {[%clk 0:02:42.5]} 19. Be3 {[%clk 0:02:51.8]} 19... Qh4
{[%clk 0:02:41.9]} 20. Qd2 {[%clk 0:02:51]} 20... Be5 {[%clk 0:02:26.5]} 21. Bf2
{[%clk 0:02:46.5]} 21... Qf6 {[%clk 0:02:21.8]} 22. Rfd1 {[%clk 0:02:43.3]}
22... a5 {[%clk 0:02:18.8]} 23. Rac1 {[%clk 0:02:43.6]} 23... g6 {[%clk
0:02:16]} 24. Be3 {[%clk 0:02:44.6]} 24... Qh4 {[%clk 0:02:11.2]} 25. Bf2 {[%clk
0:02:42.3]} 25... Bg3 {[%clk 0:02:06.4]} 26. Qe1 {[%clk 0:02:37.5]} 26... Bxf2+
{[%clk 0:02:05]} 27. Qxf2 {[%clk 0:02:39.4]} 27... Qf6 {[%clk 0:02:05.3]} 28.
Ne2 {[%clk 0:02:38.4]} 28... Qxb2 {[%clk 0:02:00.7]} 29. Qh4 {[%clk 0:02:30.4]}
29... Rae8 {[%clk 0:01:50.1]} 30. Nd4 {[%clk 0:02:29.3]} 30... a4 {[%clk
0:01:26.9]} 31. Qf6 {[%clk 0:02:28.9]} 31... b3 {[%clk 0:01:04.2]} 32. axb3
{[%clk 0:02:29.5]} 32... axb3 {[%clk 0:01:05]} 33. h4 {[%clk 0:02:29.6]} 33...
h5 {[%clk 0:00:59.1]} 34. Rb1 {[%clk 0:02:19.5]} 34... Qc3 {[%clk 0:00:59.7]}
35. Bxb3 {[%clk 0:02:19.4]} 35... Qe3+ {[%clk 0:00:57.9]} 36. Kh2 {[%clk
0:02:18.2]} 36... Ba6 {[%clk 0:00:38.8]} 37. Nc6 {[%clk 0:01:13.1]} 37... Nxb3
{[%clk 0:00:23.5]} 38. Re1 {[%clk 0:01:01.4]} 38... Qd3 {[%clk 0:00:17.5]} 39.
Nb4 {[%clk 0:00:58.8]} 39... Qd2 {[%clk 0:00:09.6]} 40. Nxa6 {[%clk 0:00:56.2]}
40... Nd4 {[%clk 0:00:11.1]} 41. Rf1 {[%clk 0:00:55.3]} 41... Qe3 {[%clk
0:00:06.1]} 42. Nxc7 {[%clk 0:00:54.6]} 42... Rc8 {[%clk 0:00:06.9]} 43. Rbe1
{[%clk 0:00:48.8]} 43... Qc3 {[%clk 0:00:06.3]} 44. Rc1 {[%clk 0:00:47]} 44...
Qd2 {[%clk 0:00:04.8]} 45. Rcd1 {[%clk 0:00:46]} 45... Qe3 {[%clk 0:00:05.4]}
46. Ne8 {[%clk 0:00:29.1]} 46... Rcxe8 {[%clk 0:00:04.9]} 47. Qxd4 {[%clk
0:00:30]} 47... Qf4+ {[%clk 0:00:06]} 48. g3 {[%clk 0:00:30.6]} 48... Qh6 {[%clk
0:00:05]} 49. Qd2 {[%clk 0:00:31.7]} 49... Qg7 {[%clk 0:00:06]} 50. Rfe1 {[%clk
0:00:31.6]} 50... Rd8 {[%clk 0:00:06.9]} 51. f4 {[%clk 0:00:32.2]} 51... Rfe8
{[%clk 0:00:08.3]} 52. Qd4 {[%clk 0:00:33.2]} 52... Qf8 {[%clk 0:00:09.5]} 53.
e5 {[%clk 0:00:32.4]} 53... dxe5 {[%clk 0:00:11.4]} 54. fxe5 {[%clk 0:00:34.3]}
54... Qa3 {[%clk 0:00:12.2]} 55. Kh3 {[%clk 0:00:34]} 55... Qf3 {[%clk
0:00:12.5]} 56. Qf4 {[%clk 0:00:32.5]} 56... Qb3 {[%clk 0:00:10.6]} 57. Rf1
{[%clk 0:00:31.9]} 57... Rd7 {[%clk 0:00:11.3]} 58. Qf6 {[%clk 0:00:26.6]} 58...
Rde7 {[%clk 0:00:10.8]} 59. e6 {[%clk 0:00:27.5]} 59... fxe6 {[%clk 0:00:05.4]}
60. Qxg6+ {[%clk 0:00:28.7]} 60... Kh8 {[%clk 0:00:07]} 61. Qxh5+ {[%clk
0:00:29.5]} 61... Kg7 {[%clk 0:00:08.3]} 62. Qg5+ {[%clk 0:00:30.1]} 62... Kh7
{[%clk 0:00:09.8]} 63. Rf6 {[%clk 0:00:29.4]} 63... Qxd1 {[%clk 0:00:07.1]} 64.
Rh6# {[%clk 0:00:29.3]} 1-0

[Event "*** Titled Tuesday Blitz"]
[Site "Chess.com"]
[Date "2018.11.06"]
[Round "3"]
[White "Muisback26"]
[Black "KenanGarayev"]
[Result "0-1"]
[WhiteElo "2809"]
[BlackElo "2752"]
[TimeControl "180+2"]
[EndTime "13:41:04 PST"]
[Termination "KenanGarayev won by resignation"]

1. e4 {[%clk 0:03:01.7]} 1... e5 {[%clk 0:03:00.6]} 2. Nf3 {[%clk 0:03:02.5]}
2... Nc6 {[%clk 0:03:01.4]} 3. d4 {[%clk 0:03:03.6]} 3... exd4 {[%clk
0:02:59.6]} 4. Bc4 {[%clk 0:03:04.7]} 4... Nf6 {[%clk 0:02:58.8]} 5. e5 {[%clk
0:03:06]} 5... d5 {[%clk 0:02:57.3]} 6. Bb5 {[%clk 0:03:07]} 6... Ne4 {[%clk
0:02:58.7]} 7. Nxd4 {[%clk 0:03:08]} 7... Bd7 {[%clk 0:02:59.4]} 8. Bxc6 {[%clk
0:03:09.4]} 8... bxc6 {[%clk 0:02:59.9]} 9. O-O {[%clk 0:03:11.1]} 9... Bc5
{[%clk 0:02:57.1]} 10. f3 {[%clk 0:03:12.3]} 10... Ng5 {[%clk 0:02:57.8]} 11.
Be3 {[%clk 0:03:13.3]} 11... Qe7 {[%clk 0:02:54.5]} 12. f4 {[%clk 0:03:12.4]}
12... Ne6 {[%clk 0:02:52.8]} 13. Kh1 {[%clk 0:03:11.3]} 13... O-O {[%clk
0:02:47.3]} 14. Nf5 {[%clk 0:03:10.4]} 14... Qd8 {[%clk 0:02:42.9]} 15. Nd2
{[%clk 0:03:02.8]} 15... f6 {[%clk 0:02:35.5]} 16. Bxc5 {[%clk 0:02:24.2]} 16...
Nxc5 {[%clk 0:02:35]} 17. Nd4 {[%clk 0:02:26.1]} 17... fxe5 {[%clk 0:02:30.5]}
18. fxe5 {[%clk 0:02:28]} 18... Rxf1+ {[%clk 0:02:32.4]} 19. Qxf1 {[%clk
0:02:28.4]} 19... Qf8 {[%clk 0:02:31]} 20. Qe2 {[%clk 0:02:27.6]} 20... Re8
{[%clk 0:02:29.5]} 21. Qe3 {[%clk 0:01:53.4]} 21... Qe7 {[%clk 0:02:19.5]} 22.
Re1 {[%clk 0:01:50.9]} 22... Ne4 {[%clk 0:02:01.7]} 23. e6 {[%clk 0:01:25.3]}
23... Bxe6 {[%clk 0:01:58.9]} 24. Nxe4 {[%clk 0:01:25.8]} 24... Bd7 {[%clk
0:01:54.3]} 25. Qb3 {[%clk 0:00:35.7]} 25... Qf7 {[%clk 0:01:13.6]} 26. h3
{[%clk 0:00:31.7]} 26... dxe4 {[%clk 0:01:09.5]} 27. Qc3 {[%clk 0:00:21.6]}
27... Qd5 {[%clk 0:01:03.7]} 28. Nb3 {[%clk 0:00:15.9]} 28... Bf5 {[%clk
0:01:04]} 29. Qe3 {[%clk 0:00:15.9]} 29... a5 {[%clk 0:01:01.7]} 30. a3 {[%clk
0:00:14]} 30... Rd8 {[%clk 0:01:00.3]} 31. Rf1 {[%clk 0:00:12.2]} 31... Bg6
{[%clk 0:00:58.6]} 32. Nc5 {[%clk 0:00:13.3]} 32... h6 {[%clk 0:00:53.4]} 33. b3
{[%clk 0:00:09.4]} 33... Kh7 {[%clk 0:00:46.8]} 34. c3 {[%clk 0:00:09.3]} 34...
Qd2 {[%clk 0:00:44.6]} 35. Re1 {[%clk 0:00:05.3]} 35... Qc2 {[%clk 0:00:34.3]}
36. b4 {[%clk 0:00:06.7]} 36... axb4 {[%clk 0:00:33.4]} 37. cxb4 {[%clk
0:00:07.7]} 37... Rd2 {[%clk 0:00:34.9]} 38. Rg1 {[%clk 0:00:08.7]} 38... Re2
{[%clk 0:00:31.8]} 39. Qf4 {[%clk 0:00:09.7]} 39... e3 {[%clk 0:00:30.8]} 40.
Ne6 {[%clk 0:00:10.9]} 40... Qe4 {[%clk 0:00:25.8]} 41. Nf8+ {[%clk 0:00:10.5]}
41... Kh8 {[%clk 0:00:22.3]} 42. Nxg6+ {[%clk 0:00:11.3]} 42... Qxg6 {[%clk
0:00:23.7]} 43. Qxc7 {[%clk 0:00:12.4]} 43... Rf2 {[%clk 0:00:18]} 44. Qe5
{[%clk 0:00:09.9]} 44... e2 {[%clk 0:00:17.3]} 45. Qe3 {[%clk 0:00:10.8]} 45...
Qf5 {[%clk 0:00:12.9]} 46. a4 {[%clk 0:00:11.3]} 46... Qf4 {[%clk 0:00:12.1]}
47. Qe8+ {[%clk 0:00:07.1]} 47... Kh7 {[%clk 0:00:12.9]} 48. Qxc6 {[%clk
0:00:09]} 48... Qxb4 {[%clk 0:00:10.5]} 49. Qc2+ {[%clk 0:00:08.9]} 49... Kh8
{[%clk 0:00:10.7]} 50. Qc8+ {[%clk 0:00:08.4]} 50... Qf8 {[%clk 0:00:11.5]} 51.
Qc1 {[%clk 0:00:08.2]} 51... Rf1 {[%clk 0:00:11]} 52. Qe3 {[%clk 0:00:08.7]}
52... Rxg1+ {[%clk 0:00:11.6]} 53. Kxg1 {[%clk 0:00:10]} 53... Qf1+ {[%clk
0:00:13.2]} 54. Kh2 {[%clk 0:00:11.6]} 54... e1=Q {[%clk 0:00:15.1]} 0-1

[Event "*** Titled Tuesday Blitz"]
[Site "Chess.com"]
[Date "2018.11.06"]
[Round "3"]
[White "Vuk2000"]
[Black "GMMelik"]
[Result "0-1"]
[WhiteElo "2681"]
[BlackElo "2454"]
[TimeControl "180+2"]
[EndTime "13:41:16 PST"]
[Termination "GMMelik won by checkmate"]

1. e4 {[%clk 0:03:01.9]} 1... e5 {[%clk 0:03:00.5]} 2. Nf3 {[%clk 0:03:01.3]}
2... Nc6 {[%clk 0:03:01.2]} 3. d4 {[%clk 0:03:02.1]} 3... exd4 {[%clk 0:03:02]}
4. Nxd4 {[%clk 0:03:04]} 4... Nf6 {[%clk 0:03:03.1]} 5. Nxc6 {[%clk 0:03:05.2]}
5... bxc6 {[%clk 0:03:03.9]} 6. Bd3 {[%clk 0:03:06.9]} 6... d5 {[%clk
0:03:03.9]} 7. exd5 {[%clk 0:03:08.8]} 7... cxd5 {[%clk 0:03:02.8]} 8. Bb5+
{[%clk 0:03:09.8]} 8... Bd7 {[%clk 0:03:03.1]} 9. Bxd7+ {[%clk 0:03:11.1]} 9...
Qxd7 {[%clk 0:03:03.7]} 10. O-O {[%clk 0:03:12.8]} 10... Be7 {[%clk 0:03:03.7]}
11. b3 {[%clk 0:03:13.6]} 11... O-O {[%clk 0:03:04.3]} 12. Nd2 {[%clk
0:03:14.6]} 12... Qf5 {[%clk 0:02:51.6]} 13. Bb2 {[%clk 0:03:14.8]} 13... Bd6
{[%clk 0:02:52.6]} 14. Nf3 {[%clk 0:03:14]} 14... Rad8 {[%clk 0:02:51.7]} 15.
Re1 {[%clk 0:03:11]} 15... c5 {[%clk 0:02:50.7]} 16. Qd3 {[%clk 0:03:07.3]}
16... Qh5 {[%clk 0:02:36.2]} 17. Bxf6 {[%clk 0:02:59.8]} 17... gxf6 {[%clk
0:02:35.4]} 18. Rad1 {[%clk 0:02:59.3]} 18... Bb8 {[%clk 0:02:08.4]} 19. Re7
{[%clk 0:02:44.6]} 19... Rfe8 {[%clk 0:01:50.3]} 20. Rxe8+ {[%clk 0:02:11.4]}
20... Rxe8 {[%clk 0:01:52.2]} 21. Qxd5 {[%clk 0:02:12.4]} 21... Bxh2+ {[%clk
0:01:50.8]} 22. Kf1 {[%clk 0:02:12]} 22... Be5 {[%clk 0:01:45.7]} 23. Qxc5
{[%clk 0:01:45.5]} 23... Qh1+ {[%clk 0:01:33.1]} 24. Ng1 {[%clk 0:01:46.5]}
24... Bh2 {[%clk 0:01:33]} 25. f3 {[%clk 0:01:47.8]} 25... Kg7 {[%clk
0:01:19.1]} 26. Qf2 {[%clk 0:01:27.1]} 26... Re5 {[%clk 0:01:11.4]} 27. c4
{[%clk 0:01:05.9]} 27... a5 {[%clk 0:01:10.7]} 28. c5 {[%clk 0:01:03.6]} 28...
Bxg1 {[%clk 0:01:02.1]} 29. Qxg1 {[%clk 0:00:59.7]} 29... Qxg1+ {[%clk 0:01:03]}
30. Kxg1 {[%clk 0:01:01.6]} 30... Rxc5 {[%clk 0:01:04.5]} 31. Rd2 {[%clk
0:01:00.5]} 31... f5 {[%clk 0:01:04.7]} 32. Kf2 {[%clk 0:01:01.2]} 32... f4
{[%clk 0:01:05]} 33. Ke2 {[%clk 0:01:02]} 33... Kf6 {[%clk 0:01:01.7]} 34. Kd3
{[%clk 0:01:03]} 34... Kg5 {[%clk 0:00:57.6]} 35. Kd4 {[%clk 0:01:00.1]} 35...
Rc1 {[%clk 0:00:56.8]} 36. Re2 {[%clk 0:00:35.9]} 36... f5 {[%clk 0:00:52.3]}
37. Ke5 {[%clk 0:00:29.2]} 37... h5 {[%clk 0:00:50.7]} 38. Ke6 {[%clk 0:00:23]}
38... Rc6+ {[%clk 0:00:38.9]} 39. Kd5 {[%clk 0:00:23]} 39... Rc1 {[%clk
0:00:39.9]} 40. Ke6 {[%clk 0:00:24]} 40... Rc6+ {[%clk 0:00:40]} 41. Kd5 {[%clk
0:00:15.1]} 41... Rc1 {[%clk 0:00:40.7]} 42. Rb2 {[%clk 0:00:16.3]} 42... Kh4
{[%clk 0:00:38]} 43. Ke5 {[%clk 0:00:17.1]} 43... Kg3 {[%clk 0:00:39.2]} 44.
Kxf5 {[%clk 0:00:16.9]} 44... h4 {[%clk 0:00:40.7]} 45. a4 {[%clk 0:00:17.4]}
45... Rc5+ {[%clk 0:00:40.1]} 46. Ke4 {[%clk 0:00:17.7]} 46... Rc3 {[%clk
0:00:38.1]} 47. Kd4 {[%clk 0:00:16.9]} 47... Rc1 {[%clk 0:00:37.4]} 48. Ke5
{[%clk 0:00:16.3]} 48... Rc5+ {[%clk 0:00:36.7]} 49. Kd6 {[%clk 0:00:17.1]}
49... Rc8 {[%clk 0:00:33.6]} 50. Ke5 {[%clk 0:00:09.2]} 50... Rb8 {[%clk
0:00:34.7]} 51. Ke4 {[%clk 0:00:09.9]} 51... Rb4+ {[%clk 0:00:35.7]} 52. Ke5
{[%clk 0:00:09.6]} 52... h3 {[%clk 0:00:36.6]} 53. gxh3 {[%clk 0:00:11.5]} 53...
Kxf3 {[%clk 0:00:37.9]} 54. h4 {[%clk 0:00:12.5]} 54... Kg4 {[%clk 0:00:39.2]}
55. Rh2 {[%clk 0:00:13.4]} 55... Kg3 {[%clk 0:00:39.5]} 56. Rh1 {[%clk
0:00:14.4]} 56... f3 {[%clk 0:00:41]} 57. h5 {[%clk 0:00:15.8]} 57... Kg2 {[%clk
0:00:42.2]} 58. Rc1 {[%clk 0:00:15.3]} 58... f2 {[%clk 0:00:40.8]} 59. Kd5
{[%clk 0:00:16.5]} 59... Rxb3 {[%clk 0:00:41.2]} 60. h6 {[%clk 0:00:11.5]} 60...
f1=Q {[%clk 0:00:42.1]} 61. Rxf1 {[%clk 0:00:12.1]} 61... Kxf1 {[%clk 0:00:44]}
62. Kc5 {[%clk 0:00:13.6]} 62... Rh3 {[%clk 0:00:41.2]} 63. Kb5 {[%clk
0:00:14.1]} 63... Rxh6 {[%clk 0:00:41.9]} 64. Kxa5 {[%clk 0:00:15.3]} 64... Ke2
{[%clk 0:00:43.8]} 65. Kb5 {[%clk 0:00:16.6]} 65... Kd3 {[%clk 0:00:44.4]} 66.
a5 {[%clk 0:00:18.2]} 66... Rh5+ {[%clk 0:00:45.1]} 67. Kb6 {[%clk 0:00:18.8]}
67... Kc4 {[%clk 0:00:46.5]} 68. a6 {[%clk 0:00:20.1]} 68... Rh6+ {[%clk
0:00:47.9]} 69. Kb7 {[%clk 0:00:20.8]} 69... Kb5 {[%clk 0:00:49.1]} 70. a7
{[%clk 0:00:21.6]} 70... Rh7+ {[%clk 0:00:50.5]} 71. Kb8 {[%clk 0:00:22.6]}
71... Kb6 {[%clk 0:00:51.8]} 72. a8=Q {[%clk 0:00:23.9]} 72... Rh8# {[%clk
0:00:51.9]} 0-1

[Event "*** Titled Tuesday Blitz"]
[Site "Chess.com"]
[Date "2018.11.06"]
[Round "3"]
[White "VerdeNotte"]
[Black "ahmadzada13"]
[Result "0-1"]
[WhiteElo "2814"]
[BlackElo "2645"]
[TimeControl "180+2"]
[EndTime "13:41:59 PST"]
[Termination "ahmadzada13 won by checkmate"]

1. Nf3 {[%clk 0:03:01.9]} 1... c5 {[%clk 0:02:59]} 2. b3 {[%clk 0:03:02.4]} 2...
Nc6 {[%clk 0:02:58]} 3. Bb2 {[%clk 0:03:03.8]} 3... d6 {[%clk 0:02:58.3]} 4. d4
{[%clk 0:03:04.2]} 4... cxd4 {[%clk 0:02:58.9]} 5. Nxd4 {[%clk 0:03:06.1]} 5...
Nf6 {[%clk 0:03:00]} 6. g3 {[%clk 0:03:06.9]} 6... Bd7 {[%clk 0:02:58.2]} 7. Bg2
{[%clk 0:03:08]} 7... Nxd4 {[%clk 0:02:59]} 8. Qxd4 {[%clk 0:03:07.6]} 8... Bc6
{[%clk 0:02:58.2]} 9. O-O {[%clk 0:03:01.8]} 9... Bxg2 {[%clk 0:02:56.4]} 10.
Kxg2 {[%clk 0:03:03.7]} 10... e6 {[%clk 0:02:49.5]} 11. Nc3 {[%clk 0:02:53.6]}
11... Be7 {[%clk 0:02:46.5]} 12. Rad1 {[%clk 0:02:53.6]} 12... O-O {[%clk
0:02:45.8]} 13. e4 {[%clk 0:02:54.5]} 13... Rc8 {[%clk 0:02:45.4]} 14. Rd2
{[%clk 0:02:54]} 14... Qa5 {[%clk 0:02:43.6]} 15. Rfd1 {[%clk 0:02:52.3]} 15...
Rc6 {[%clk 0:02:42.7]} 16. a3 {[%clk 0:02:51.2]} 16... Rfc8 {[%clk 0:02:39]} 17.
b4 {[%clk 0:02:52.4]} 17... Qh5 {[%clk 0:02:20.7]} 18. Qxa7 {[%clk 0:02:38.5]}
18... Rxc3 {[%clk 0:02:05]} 19. Bxc3 {[%clk 0:02:39.4]} 19... Rxc3 {[%clk
0:02:06]} 20. Qxb7 {[%clk 0:02:39.1]} 20... Qf3+ {[%clk 0:02:03.5]} 21. Kg1
{[%clk 0:02:39.3]} 21... Bf8 {[%clk 0:02:00]} 22. Rd3 {[%clk 0:02:37.6]} 22...
Rxd3 {[%clk 0:01:48]} 23. Rxd3 {[%clk 0:02:39.5]} 23... Qe2 {[%clk 0:01:48.1]}
24. Qb6 {[%clk 0:01:57.5]} 24... Qe1+ {[%clk 0:01:45.7]} 25. Kg2 {[%clk
0:01:58.3]} 25... Qxe4+ {[%clk 0:01:45.3]} 26. f3 {[%clk 0:01:59.6]} 26... Qc4
{[%clk 0:01:37.2]} 27. Qf2 {[%clk 0:01:59.8]} 27... Nd5 {[%clk 0:01:32.1]} 28.
Qd2 {[%clk 0:01:52.2]} 28... g6 {[%clk 0:01:16.8]} 29. Rd4 {[%clk 0:01:50]}
29... Qa2 {[%clk 0:00:50.8]} 30. c4 {[%clk 0:01:47.2]} 30... Ne3+ {[%clk
0:00:48.4]} 31. Kf2 {[%clk 0:01:39.7]} 31... Qxd2+ {[%clk 0:00:46.6]} 32. Rxd2
{[%clk 0:01:41.6]} 32... Nxc4 {[%clk 0:00:47.7]} 33. Rd3 {[%clk 0:01:37.3]}
33... d5 {[%clk 0:00:48.3]} 34. Ke2 {[%clk 0:01:38]} 34... Bd6 {[%clk
0:00:48.8]} 35. Rb3 {[%clk 0:01:33.9]} 35... Kf8 {[%clk 0:00:48.4]} 36. a4
{[%clk 0:01:35.3]} 36... Ke7 {[%clk 0:00:47]} 37. a5 {[%clk 0:01:36.8]} 37...
Kd7 {[%clk 0:00:42.1]} 38. f4 {[%clk 0:01:35.9]} 38... Kc7 {[%clk 0:00:40.1]}
39. Kd3 {[%clk 0:01:33.9]} 39... Kb7 {[%clk 0:00:39.6]} 40. Kd4 {[%clk
0:01:32.1]} 40... Ka6 {[%clk 0:00:37.4]} 41. Rb1 {[%clk 0:01:25]} 41... Kb5
{[%clk 0:00:30.5]} 42. Kc3 {[%clk 0:01:26.2]} 42... Na3 {[%clk 0:00:27.5]} 43.
Rb3 {[%clk 0:01:19.7]} 43... Nc4 {[%clk 0:00:21]} 44. Rb1 {[%clk 0:01:20.6]}
44... Be7 {[%clk 0:00:21.4]} 45. h3 {[%clk 0:01:17.2]} 45... Na3 {[%clk
0:00:21.8]} 46. Rb3 {[%clk 0:01:16.4]} 46... Ka4 {[%clk 0:00:19.5]} 47. a6
{[%clk 0:00:53.4]} 47... Nb5+ {[%clk 0:00:18.7]} 48. Kc2 {[%clk 0:00:53.5]}
48... Na7 {[%clk 0:00:17.8]} 49. Kc3 {[%clk 0:00:52.4]} 49... Kb5 {[%clk
0:00:17.7]} 50. g4 {[%clk 0:00:52.2]} 50... Kxa6 {[%clk 0:00:18.3]} 51. f5
{[%clk 0:00:52]} 51... gxf5 {[%clk 0:00:18.9]} 52. gxf5 {[%clk 0:00:53.4]} 52...
Kb5 {[%clk 0:00:20]} 53. Kc2 {[%clk 0:00:49.2]} 53... Nc6 {[%clk 0:00:19.7]} 54.
Kd3 {[%clk 0:00:41.2]} 54... Bxb4 {[%clk 0:00:18.4]} 55. fxe6 {[%clk 0:00:41.2]}
55... fxe6 {[%clk 0:00:20.3]} 56. Rb2 {[%clk 0:00:39.2]} 56... e5 {[%clk
0:00:19.7]} 57. Rg2 {[%clk 0:00:40.1]} 57... e4+ {[%clk 0:00:20]} 58. Ke3 {[%clk
0:00:41.6]} 58... Bc5+ {[%clk 0:00:20.3]} 59. Kf4 {[%clk 0:00:43.1]} 59... Kc4
{[%clk 0:00:19.3]} 60. Rc2+ {[%clk 0:00:41.5]} 60... Kd4 {[%clk 0:00:19.9]} 61.
Rd2+ {[%clk 0:00:42.9]} 61... Kc4 {[%clk 0:00:18.7]} 62. Rc2+ {[%clk 0:00:44.4]}
62... Kb5 {[%clk 0:00:18.6]} 63. Rb2+ {[%clk 0:00:45.3]} 63... Nb4 {[%clk
0:00:19.2]} 64. h4 {[%clk 0:00:46]} 64... Kc4 {[%clk 0:00:19.2]} 65. Kg5 {[%clk
0:00:42.1]} 65... e3 {[%clk 0:00:19.1]} 66. Kh6 {[%clk 0:00:42.7]} 66... d4
{[%clk 0:00:18.5]} 67. Kxh7 {[%clk 0:00:43.8]} 67... d3 {[%clk 0:00:19.3]} 68.
h5 {[%clk 0:00:43.5]} 68... e2 {[%clk 0:00:19.7]} 69. Rb1 {[%clk 0:00:41.6]}
69... d2 {[%clk 0:00:20.2]} 70. Rh1 {[%clk 0:00:42]} 70... d1=Q {[%clk 0:00:20]}
71. Rh4+ {[%clk 0:00:42.9]} 71... Bd4 {[%clk 0:00:20.9]} 72. Rg4 {[%clk
0:00:40.7]} 72... e1=Q {[%clk 0:00:19.9]} 73. h6 {[%clk 0:00:42.2]} 73... Qe7+
{[%clk 0:00:17.6]} 74. Rg7 {[%clk 0:00:42]} 74... Qd3+ {[%clk 0:00:16.5]} 75.
Kg8 {[%clk 0:00:39.6]} 75... Qe8# {[%clk 0:00:16.9]} 0-1